lending/lending_fUSD_20250917
["ID","MTS","AMOUNT","RATE_DAILY","PERIOD"]
[385874649,1758081039702,-221576.3115813,0.00023453,2]
[385874650,1758081039714,-3115.4461607,0.00023453,2]
[385874651,1758081039726,-301.4838323,0.00023453,2]
[385874652,1758081039739,-500.0,0.00023453,5]
[385874653,1758081039751,-2500.0,0.00023464,2]
[385874654,1758081039764,-500.0,0.00023473,2]
[385874655,1758081039776,-500.0,0.00023473,2]
[385874656,1758081039788,-500.0,0.00023473,2]
[385874657,1758081039800,-500.0,0.00023473,2]
[385874658,1758081039812,-540.2864065,0.00023473,2]
[385874659,1758081039824,-501.10191247,0.00023473,2]
[385874660,1758081039836,-500.0,0.00023473,2]
[385874661,1758081039849,-500.0,0.00023473,2]
[385874662,1758081039861,-500.0,0.00023473,2]
[385874663,1758081039872,-500.0,0.00023473,2]
[385874664,1758081039887,-500.0,0.00023473,2]
[385874665,1758081039899,-533.21836435,0.00023473,2]
[385874666,1758081039911,-500.0,0.00023473,2]
[385874667,1758081039923,-511.47139,0.00023473,2]
[385874668,1758081039936,-500.0,0.00023473,2]
[385874669,1758081039948,-500.0,0.00023473,2]
[385874670,1758081039960,-500.0,0.00023473,2]
[385874671,1758081039972,-500.0,0.00023473,2]
[385874672,1758081039984,-500.0,0.00023473,2]
[385874673,1758081039996,-500.0,0.00023473,2]
[385874674,1758081040008,-500.0,0.00023473,2]
[385874675,1758081040020,-200.0,0.00023473,2]
[385874676,1758081040031,-500.0,0.00023473,2]
[385874677,1758081040044,-500.0,0.00023473,2]
[385874678,1758081040056,-254.78636331,0.00023473,2]
[385874679,1758081040068,-500.0,0.00023473,2]
[385874680,1758081040080,-500.0,0.00023473,2]
[385874681,1758081040092,-500.0,0.00023473,2]
[385874682,1758081040104,-503.7360375,0.00023473,2]
[385874683,1758081040117,-501.24639017,0.00023473,2]
[385874684,1758081040129,-501.33157288,0.00023473,2]
[385874685,1758081040141,-200.0,0.000235,2]
[385874686,1758081040153,-150.0,0.00023605,2]
[385874687,1758081040166,-500.0,0.00023605,2]
[385874688,1758081040178,-500.0,0.00023605,2]
[385874689,1758081040191,-500.0,0.00023642,2]
[385874690,1758081040203,-756.0,0.0002367,2]
[385874691,1758081040215,-899.0,0.0002367,2]
[385874692,1758081040227,-500.0,0.0002367,2]
[385874693,1758081040239,-150.0,0.0002367,2]
[385874694,1758081040251,-500.0,0.0002367,2]
[385874695,1758081040263,-500.0,0.0002367,2]
[385874696,1758081040275,-150.0,0.0002367,2]
[385874697,1758081040287,-258.0114094,0.0002367,2]
[385874698,1758081040298,-500.0,0.0002367,2]
[385874699,1758081040310,-500.0,0.0002367,2]
[385874700,1758081040321,-862.0,0.0002367,2]
[385874701,1758081040333,-500.0,0.0002367,2]
[385874702,1758081040346,-500.0,0.0002367,2]
[385874703,1758081040358,-5513.0,0.000237,3]
[385874704,1758081040370,-500.0,0.00023712,2]
[385874705,1758081040381,-3000.0,0.00023712,2]
[385874706,1758081040393,-300.0,0.00023763,2]
[385874707,1758081040405,-494.38221128,0.000238,2]
[385874708,1758081040418,-150.0,0.00023879,2]
[385874709,1758081040429,-500.0,0.00023879,2]
[385874710,1758081040441,-500.0,0.00023879,2]
[385874711,1758081040453,-13912.10349741,0.00023892,2]
[385874712,1758081040465,-500.0,0.000239,8]
[385874713,1758081040476,-500.0,0.00023916,2]
[385874714,1758081040488,-1500.0,0.00023921,2]
[385874715,1758081040500,-2351.0,0.00023941,2]
[385874716,1758081040513,-756.0,0.00023944,2]
[385874717,1758081040525,-899.0,0.00023944,2]
[385874718,1758081040537,-193.01952039,0.00023944,2]
[385874719,1758081040549,-150.0,0.00023944,2]
[385874720,1758081040561,-500.0,0.00023944,2]
[385874721,1758081040574,-500.0,0.00023944,2]
[385874722,1758081040586,-150.0,0.00023944,2]
[385874723,1758081040599,-500.0,0.00023944,2]
[385874724,1758081040611,-500.0,0.00023944,2]
[385874725,1758081040624,-862.0,0.00023944,2]
[385874726,1758081040636,-500.0,0.00023944,2]
[385874727,1758081040648,-500.0,0.00023944,2]
[385874728,1758081040660,-500.0,0.00023986,2]
[385874729,1758081040672,-500.0,0.00024001,5]
[385874730,1758081040684,-790.14684886,0.00024012,2]
[385874731,1758081040695,-1000.0,0.00024021,2]
[385874732,1758081040707,-1000.0,0.00024021,2]
[385874733,1758081040719,-1000.0,0.00024021,2]
[385874734,1758081040730,-1000.0,0.00024021,2]
[385874735,1758081040742,-1000.0,0.00024021,2]
[385874736,1758081040754,-453.70168942,0.00024021,2]
[385874737,1758081040766,-504.00429175,0.00024021,2]
[385874738,1758081040778,-1000.0,0.00024021,2]
[385874739,1758081040790,-1000.0,0.00024021,2]
[385874740,1758081040802,-1000.0,0.00024021,2]
[385874741,1758081040814,-1000.0,0.00024021,2]
[385874742,1758081040826,-1000.0,0.00024021,2]
[385874743,1758081040837,-1000.0,0.00024021,2]
[385874744,1758081040849,-1000.0,0.00024021,2]
[385874745,1758081040861,-1000.0,0.00024021,2]
[385874746,1758081040872,-1000.0,0.00024021,2]
[385874747,1758081040887,-1000.0,0.00024021,2]
[385874748,1758081040898,-1000.0,0.00024021,2]
[385874749,1758081040910,-1000.0,0.00024021,2]
[385874750,1758081040923,-503.15394586,0.00024021,2]
[385874751,1758081040935,-1000.0,0.00024021,2]
[385874752,1758081040947,-504.68871115,0.00024021,2]
[385874753,1758081040959,-150.0,0.00024041,2]
[385874754,1758081040971,-150.0,0.00024041,2]
[385874755,1758081040983,-174.85081994,0.00024041,2]
[385874756,1758081040996,-150.0,0.00024041,2]
[385874757,1758081041009,-150.0,0.00024041,2]
[385874758,1758081041021,-155.36726569,0.00024041,2]
[385874759,1758081041032,-240.36296035,0.00024041,2]
[385874760,1758081041043,-150.0,0.00024041,2]
[385874761,1758081041056,-150.0,0.0002405,2]
[385874762,1758081041067,-276.87462079,0.00024051,2]
[385874763,1758081041079,-352.87941866,0.00024053,2]
[385874764,1758081041094,-428.88421652,0.00024054,2]
[385874765,1758081041106,-150.0,0.00024054,2]
[385874766,1758081041118,-504.88901438,0.00024056,2]
[385874767,1758081041133,-580.89381225,0.00024057,2]
[385874768,1758081041145,-656.89861011,0.00024059,2]
[385874769,1758081041157,-732.90340798,0.00024061,2]
[385874770,1758081041169,-808.90820584,0.00024062,2]
[385874771,1758081041181,-884.91300371,0.00024064,2]
[385874772,1758081041197,-500.0,0.00024073,2]
[385874773,1758081041209,-4596.01520987,0.000241,2]
[385874774,1758081041222,-582.06,0.00024142,2]
[385874775,1758081041236,-150.0,0.0002415,2]
[385874776,1758081041249,-260.5992753,0.00024151,2]
[385874777,1758081041262,-500.0,0.00024151,2]
[385874778,1758081041274,-150.0,0.00024151,2]
[385874779,1758081041287,-500.0,0.00024151,2]
[385874780,1758081041301,-500.0,0.00024151,2]
[385874781,1758081041314,-500.0,0.00024151,2]
[385874782,1758081041325,-500.0,0.00024151,2]
[385874783,1758081041337,-150.0,0.00024151,2]
[385874784,1758081041349,-150.46687612,0.00024151,2]
[385874785,1758081041361,-500.0,0.00024151,2]
[385874786,1758081041370,-500.0,0.00024151,2]
[385874787,1758081041379,-150.0,0.00024151,2]
[385874788,1758081041388,-150.0,0.00024151,2]
[385874789,1758081041398,-500.0,0.00024151,2]
[385874790,1758081041407,-150.0,0.00024151,2]
[385874791,1758081041416,-500.0,0.00024151,2]
[385874792,1758081041425,-177.07756966,0.00024153,2]
[385874793,1758081041434,-500.0,0.00024153,2]
[385874794,1758081041444,-500.0,0.00024153,2]
[385874795,1758081041454,-332.13633127,0.00024153,2]
[385874796,1758081041464,-403.67338724,0.00024154,2]
[385874797,1758081041473,-475.2104432,0.00024156,2]
[385874798,1758081041483,-546.74749917,0.00024157,2]
[385874799,1758081041495,-618.28455513,0.00024159,2]
[385874800,1758081041506,-689.8216111,0.00024161,2]
[385874801,1758081041517,-761.35866707,0.00024162,2]
[385874802,1758081041527,-152.62,0.00024164,2]
[385874803,1758081041536,-832.89572304,0.00024164,2]
[385874804,1758081041546,-151.0,0.00024174,7]
[385874805,1758081041557,-151.0,0.00024174,7]
[385874806,1758081041985,-260.720469,0.00024174,7]
[385874807,1758081042008,-151.0,0.00024174,7]
[385874808,1758081042034,-151.0,0.00024174,7]
[385874809,1758081042046,-151.0,0.00024174,7]
[385874810,1758081042056,-160.0,0.00024174,14]
[385874811,1758081042067,-160.0,0.00024174,14]
[385874812,1758081042078,-160.0,0.00024174,14]
[385874813,1758081042088,-160.0,0.00024174,14]
[385874814,1758081042099,-160.0,0.00024174,14]
[385874815,1758081042110,-150.99,0.00024174,2]
[385874816,1758081042120,-9999.99,0.00024174,2]
[385874817,1758081042130,-1176.19,0.00024174,2]
[385874818,1758081042140,-97620.98,0.00024174,2]
[385874819,1758081042150,-504.1,0.00024174,2]
[385874820,1758081042159,-9999.99,0.00024174,2]
[385874821,1758081042169,-9999.99,0.00024174,2]
[385874822,1758081042179,-9999.99,0.00024174,2]
[385874823,1758081042188,-9999.99,0.00024174,2]
[385874824,1758081042198,-3749.02,0.00024174,2]
[385874825,1758081042208,-287.04,0.00024174,7]
[385874826,1758081042217,-2918.65,0.00024174,2]
[385874827,1758081042226,-341.71,0.00024174,2]
[385874828,1758081042236,-417.39,0.00024174,2]
[385874829,1758081042246,-83630.06,0.00024174,2]
[385874830,1758081042255,-499.99,0.00024174,2]
[385874831,1758081042264,-150.99,0.00024174,2]
[385874832,1758081042273,-9999.99,0.00024174,2]
[385874833,1758081042282,-1439.67,0.00024174,2]
[385874834,1758081042291,-13723.15,0.00024174,2]
[385874835,1758081042301,-999.99,0.00024174,2]
[385874836,1758081042310,-1576.52,0.00024174,2]
[385874837,1758081042320,-304.28,0.00024174,2]
[385874838,1758081042330,-500.0,0.0002419,2]
[385874839,1758081042339,-5513.0,0.000242,5]
[385874840,1758081042348,-3632.04486451,0.0002421,2]
[385874841,1758081042357,-756.0,0.00024218,2]
[385874842,1758081042367,-899.0,0.00024218,2]
[385874843,1758081042376,-150.0,0.00024218,2]
[385874844,1758081042386,-500.0,0.00024218,2]
[385874845,1758081042395,-500.0,0.00024218,2]
[385874846,1758081042404,-150.0,0.00024218,2]
[385874847,1758081042413,-500.0,0.00024218,2]
[385874848,1758081042422,-500.0,0.00024218,2]
[385874849,1758081042431,-862.0,0.00024218,2]
[385874850,1758081042441,-500.0,0.00024218,2]
[385874851,1758081042450,-500.0,0.00024218,2]
[385874852,1758081042459,-22262.86328897,0.00024236,2]
[385874853,1758081042468,-1041.02115386,0.00024255,10]
[385874854,1758081042477,-500.0,0.0002426,2]
[385874856,1758081042487,-3500.0,0.0002426,2]
[385874858,1758081042496,-500.0,0.00024273,2]
[385874860,1758081042506,-500.0,0.00024273,2]
[385874862,1758081042515,-411.11475388,0.00024273,2]
[385874864,1758081042524,-170.82020607,0.00024273,2]
[385874865,1758081042533,-500.0,0.00024273,2]
[385874867,1758081042542,-494.38221126,0.000243,2]
[385874870,1758081042551,-150.0,0.00024328,2]
[385874871,1758081042560,-503.16465056,0.00024403,2]
[385874873,1758081042570,-500.0,0.00024425,2]
[385874875,1758081042579,-150.0,0.00024425,2]
[385874877,1758081042589,-500.0,0.00024425,2]
[385874878,1758081042598,-500.0,0.00024425,2]
[385874880,1758081042607,-500.0,0.00024425,2]
[385874882,1758081042617,-500.0,0.00024425,2]
[385874884,1758081042626,-150.0,0.00024425,2]
[385874885,1758081042636,-500.0,0.00024425,2]
[385874887,1758081042646,-500.0,0.00024425,2]
[385874889,1758081042655,-150.0,0.00024425,2]
[385874890,1758081042664,-150.0,0.00024425,2]
[385874893,1758081042673,-500.0,0.00024425,2]
[385874896,1758081042683,-150.0,0.00024425,2]
[385874897,1758081042692,-500.0,0.00024425,2]
[385874900,1758081042701,-500.0,0.00024427,2]
[385874903,1758081042711,-500.0,0.00024427,2]
[385874904,1758081042720,-400.0,0.00024432,2]
[385874905,1758081042729,-500.0,0.00024464,2]
[385874906,1758081042738,-1546.58387023,0.00024469,2]
[385874907,1758081042748,-2606.39,0.00024482,2]
[385874908,1758081042757,-756.0,0.00024492,2]
[385874909,1758081042766,-899.0,0.00024492,2]
[385874910,1758081042775,-203.5144394,0.00024492,2]
[385874911,1758081042785,-500.0,0.00024492,2]
[385874912,1758081042795,-500.0,0.00024492,2]
[385874913,1758081042804,-156.43511601,0.00024492,2]
[385874914,1758081042814,-500.0,0.00024492,2]
[385874915,1758081042823,-500.0,0.00024492,2]
[385874916,1758081042832,-862.0,0.00024492,2]
[385874917,1758081042842,-500.0,0.00024492,2]
[385874918,1758081042851,-500.0,0.00024492,2]
[385874919,1758081042860,-500.0,0.00024534,2]
[385874920,1758081042869,-500.0,0.00024549,5]
[385874921,1758081042881,-156.28,0.00024564,2]
[385874922,1758081042895,-1500.0,0.00024568,2]
[385874923,1758081042904,-1075.02192947,0.00024568,2]
[385874924,1758081042913,-1500.0,0.00024568,2]
[385874925,1758081042922,-1509.12879047,0.00024568,2]
[385874926,1758081042933,-1003.68097202,0.00024568,2]
[385874927,1758081042943,-1000.0,0.00024568,2]
[385874928,1758081042952,-1500.0,0.00024568,2]
[385874929,1758081042962,-1500.0,0.00024568,2]
[385874930,1758081042971,-1500.0,0.00024568,2]
[385874931,1758081042980,-1500.0,0.00024568,2]
[385874932,1758081042991,-505.4258218,0.00024568,2]
[385874933,1758081043002,-1500.0,0.00024568,2]
[385874934,1758081043012,-1500.0,0.00024568,2]
[385874935,1758081043023,-1500.0,0.00024568,2]
[385874936,1758081043034,-1500.0,0.00024568,2]
[385874937,1758081043044,-1500.0,0.00024568,2]
[385874938,1758081043053,-1500.0,0.00024568,2]
[385874939,1758081043062,-1500.0,0.00024568,2]
[385874940,1758081043071,-150.0,0.00024602,2]
[385874941,1758081043080,-1000.0,0.00024621,2]
[385874942,1758081043090,-1000.0,0.00024658,2]
[385874943,1758081043100,-1000.0,0.00024658,2]
[385874944,1758081043112,-1000.0,0.00024658,2]
[385874945,1758081043121,-1000.0,0.00024658,2]
[385874946,1758081043130,-1000.0,0.00024658,2]
[385874947,1758081043139,-1000.0,0.00024658,2]
[385874948,1758081043148,-1000.0,0.00024658,2]
[385874949,1758081043160,-1000.0,0.00024658,2]
[385874950,1758081043169,-1000.0,0.00024658,2]
[385874951,1758081043180,-1000.0,0.00024658,2]
[385874952,1758081043189,-1000.0,0.00024658,2]
[385874953,1758081043199,-1000.0,0.00024658,2]
[385874954,1758081043210,-1000.0,0.00024658,2]
[385874955,1758081043219,-1000.0,0.00024658,2]
[385874956,1758081043228,-1000.0,0.00024658,2]
[385874957,1758081043237,-1000.0,0.00024658,2]
[385874958,1758081043245,-1000.0,0.00024658,2]
[385874959,1758081043254,-1000.0,0.00024658,2]
[385874960,1758081043263,-1000.0,0.00024658,2]
[385874961,1758081043272,-1000.0,0.00024658,2]
[385874962,1758081043281,-1000.0,0.00024658,2]
[385874964,1758081043290,-1000.0,0.00024658,2]
[385874966,1758081043299,-1000.0,0.00024658,2]
[385874968,1758081043308,-1000.0,0.00024658,2]
[385874970,1758081043317,-1000.0,0.00024658,2]
[385874972,1758081043326,-1000.0,0.00024658,2]
[385874974,1758081043335,-1000.0,0.00024658,2]
[385874977,1758081043344,-1000.0,0.00024658,2]
[385874979,1758081043353,-1000.0,0.00024658,2]
[385874981,1758081043362,-1000.0,0.00024658,2]
[385874983,1758081043371,-1000.0,0.00024658,2]
[385874985,1758081043381,-1000.0,0.00024658,2]
[385874987,1758081043390,-1000.0,0.00024658,2]
[385874989,1758081043400,-1000.0,0.00024658,2]
[385874991,1758081043409,-1000.0,0.00024658,2]
[385874993,1758081043418,-1000.0,0.00024658,2]
[385874995,1758081043427,-1000.0,0.00024658,2]
[385874997,1758081043436,-1000.0,0.00024658,2]
[385874998,1758081043446,-1000.0,0.00024658,2]
[385874999,1758081043455,-1000.0,0.00024658,2]
[385875000,1758081043464,-1000.0,0.00024658,2]
[385875001,1758081043472,-238.0,0.00024658,2]
[385875002,1758081043482,-1000.0,0.00024658,2]
[385875003,1758081043491,-1000.0,0.00024658,2]
[385875004,1758081043500,-1000.0,0.00024658,2]
[385875005,1758081043509,-1000.0,0.00024658,2]
[385875006,1758081043519,-1000.0,0.00024658,2]
[385875007,1758081043528,-1000.0,0.00024658,2]
[385875008,1758081043537,-1000.0,0.00024658,2]
[385875009,1758081043547,-268.62,0.00024658,2]
[385875010,1758081043556,-161.395355,0.00024658,7]
[385875011,1758081043565,-243.016479,0.00024658,7]
[385875012,1758081043574,-243.016479,0.00024658,7]
[385875013,1758081043583,-243.016479,0.00024658,7]
[385875014,1758081043592,-395.757704,0.00024658,7]
[385875015,1758081043602,-243.016479,0.00024658,7]
[385875016,1758081043611,-395.757704,0.00024658,7]
[385875017,1758081043621,-157.154262,0.00024658,7]
[385875018,1758081043630,-395.757704,0.00024658,7]
[385875019,1758081043640,-158.752658,0.00024658,7]
[385875020,1758081043649,-395.757704,0.00024658,7]
[385875021,1758081043658,-151.0,0.00024658,7]
[385875022,1758081043667,-151.0,0.00024658,7]
[385875023,1758081043676,-151.0,0.00024658,7]
[385875024,1758081043685,-151.0,0.00024658,7]
[385875025,1758081043695,-156.420548,0.00024658,7]
[385875026,1758081043704,-154.253135,0.00024658,7]
[385875027,1758081043713,-151.0,0.00024658,7]
[385875028,1758081043723,-152.784923,0.00024658,7]
[385875029,1758081043732,-151.0,0.00024658,7]
[385875030,1758081043742,-154.384857,0.00024658,7]
[385875031,1758081043751,-151.0,0.00024658,7]
[385875032,1758081043760,-151.0,0.00024658,7]
[385875033,1758081043770,-151.0,0.00024658,7]
[385875034,1758081043779,-151.0,0.00024658,7]
[385875035,1758081043788,-151.0,0.00024658,7]
[385875036,1758081043798,-151.0,0.00024658,7]
[385875037,1758081043807,-151.0,0.00024658,7]
[385875038,1758081043816,-151.0,0.00024658,7]
[385875039,1758081043825,-151.0,0.00024658,7]
[385875040,1758081043835,-151.0,0.00024658,7]
[385875041,1758081043845,-151.0,0.00024658,7]
[385875043,1758081043855,-201.453293,0.00024658,7]
[385875045,1758081043864,-151.0,0.00024658,7]
[385875046,1758081043873,-151.0,0.00024658,7]
[385875047,1758081043885,-151.0,0.00024658,7]
[385875048,1758081043895,-151.0,0.00024658,7]
[385875049,1758081043903,-154.632167,0.00024658,7]
[385875050,1758081043912,-151.0,0.00024658,7]
[385875051,1758081043921,-218.649692,0.00024658,7]
[385875052,1758081043930,-273.991423,0.00024658,7]
[385875053,1758081043940,-218.649692,0.00024658,7]
[385875054,1758081043948,-218.649692,0.00024658,7]
[385875055,1758081043958,-218.649692,0.00024658,7]
[385875056,1758081043967,-151.0,0.00024658,7]
[385875057,1758081043977,-151.0,0.00024658,7]
[385875058,1758081043987,-151.0,0.00024658,7]
[385875059,1758081043996,-151.0,0.00024658,7]
[385875060,1758081044005,-151.0,0.00024658,7]
[385875061,1758081044015,-151.0,0.00024658,7]
[385875062,1758081044024,-151.0,0.00024658,7]
[385875063,1758081044035,-151.0,0.00024658,7]
[385875064,1758081044044,-151.0,0.00024658,7]
[385875065,1758081044054,-151.0,0.00024658,7]
[385875066,1758081044064,-151.0,0.00024658,7]
[385875067,1758081044073,-151.0,0.00024658,7]
[385875068,1758081044083,-152.888005,0.00024658,7]
[385875069,1758081044093,-152.943732,0.00024658,7]
[385875070,1758081044105,-151.0,0.00024658,7]
[385875071,1758081044114,-151.0,0.00024658,7]
[385875072,1758081044124,-151.0,0.00024658,7]
[385875073,1758081044134,-170.473852,0.00024658,7]
[385875074,1758081044144,-154.659613,0.00024658,7]
[385875075,1758081044155,-168.693665,0.00024658,7]
[385875076,1758081044169,-154.774715,0.00024658,7]
[385875077,1758081044179,-151.0,0.00024658,7]
[385875078,1758081044188,-151.0,0.00024658,7]
[385875079,1758081044200,-155.244656,0.00024658,7]
[385875080,1758081044209,-155.69624,0.00024658,7]
[385875081,1758081044219,-151.0,0.00024658,7]
[385875082,1758081044228,-151.00000047,0.00024658,7]
[385875083,1758081044238,-179.329868,0.00024658,7]
[385875084,1758081044248,-151.0,0.00024658,7]
[385875085,1758081044258,-151.0,0.00024658,7]
[385875086,1758081044268,-151.0,0.00024658,7]
[385875087,1758081044278,-151.0,0.00024658,7]
[385875088,1758081044288,-359.421162,0.00024658,7]
[385875089,1758081044298,-151.0,0.00024658,7]
[385875090,1758081044307,-198.753053,0.00024658,7]
[385875091,1758081044317,-359.421162,0.00024658,7]
[385875092,1758081044326,-318.143665,0.00024658,7]
[385875093,1758081044336,-975.939386,0.00024658,7]
[385875094,1758081044346,-359.421162,0.00024658,7]
[385875095,1758081044356,-151.0,0.00024658,7]
[385875096,1758081044366,-318.143665,0.00024658,7]
[385875097,1758081044375,-359.421162,0.00024658,7]
[385875098,1758081044384,-975.939386,0.00024658,7]
[385875099,1758081044394,-151.0,0.00024658,7]
[385875100,1758081044404,-318.143665,0.00024658,7]
[385875101,1758081044413,-975.939386,0.00024658,7]
[385875102,1758081044422,-151.0,0.00024658,7]
[385875103,1758081044431,-318.143665,0.00024658,7]
[385875104,1758081044441,-151.0,0.00024658,7]
[385875105,1758081044452,-151.0,0.00024658,7]
[385875106,1758081044462,-975.939386,0.00024658,7]
[385875107,1758081044471,-151.0,0.00024658,7]
[385875108,1758081044480,-151.0,0.00024658,7]
[385875109,1758081044490,-151.0,0.00024658,7]
[385875110,1758081044499,-151.0,0.00024658,7]
[385875111,1758081044509,-151.0,0.00024658,7]
[385875112,1758081044518,-151.0,0.00024658,7]
[385875113,1758081044527,-151.0,0.00024658,7]
[385875114,1758081044537,-151.0,0.00024658,7]
[385875115,1758081044546,-151.0,0.00024658,7]
[385875116,1758081044555,-254.884899,0.00024658,7]
[385875117,1758081044564,-254.884899,0.00024658,7]
[385875118,1758081044574,-254.884899,0.00024658,7]
[385875119,1758081044583,-254.884899,0.00024658,7]
[385875120,1758081044592,-151.0,0.00024658,7]
[385875121,1758081044602,-157.347925,0.00024658,7]
[385875122,1758081044611,-500.0,0.00024658,2]
[385875123,1758081044621,-500.0,0.00024699,2]
[385875124,1758081044630,-150.0,0.00024699,2]
[385875125,1758081044639,-500.0,0.00024699,2]
[385875126,1758081044648,-500.0,0.00024699,2]
[385875127,1758081044658,-500.0,0.00024699,2]
[385875128,1758081044667,-500.0,0.00024699,2]
[385875129,1758081044676,-150.0,0.00024699,2]
[385875130,1758081044685,-500.0,0.00024699,2]
[385875131,1758081044694,-500.0,0.00024699,2]
[385875132,1758081044704,-150.0,0.00024699,2]
[385875133,1758081044713,-150.0,0.00024699,2]
[385875134,1758081044722,-174.50864095,0.00024699,2]
[385875135,1758081044732,-150.0,0.00024699,2]
[385875136,1758081044741,-500.0,0.00024699,2]
[385875137,1758081044751,-154.734024,0.00024699,7]
[385875138,1758081044760,-151.0,0.00024699,7]
[385875139,1758081044769,-154.459359,0.00024699,7]
[385875140,1758081044778,-151.0,0.00024699,7]
[385875141,1758081044788,-152.202334,0.00024699,7]
[385875142,1758081044797,-162.31721832,0.000247,2]
[385875143,1758081044807,-160.0,0.000247,7]
[385875144,1758081044816,-516.07479255,0.000247,7]
[385875145,1758081044826,-500.0,0.00024701,2]
[385875146,1758081044835,-500.0,0.00024701,2]
[385875147,1758081044845,-506.56657872,0.00024708,2]
[385875148,1758081044855,-152.11,0.00024733,2]
[385875149,1758081044864,-151.0,0.00024733,7]
[385875150,1758081044874,-162.61115,0.00024733,7]
[385875162,1758081045041,-151.0,0.00024733,7]
[385875165,1758081045078,-252.181937,0.00024733,7]
[385875167,1758081045088,-165.258145,0.00024733,7]
[385875169,1758081045098,-151.0,0.00024733,7]
[385875171,1758081045107,-151.630568,0.00024733,7]
[385875173,1758081045117,-158.929631,0.00024733,7]
[385875175,1758081045126,-156.784166,0.00024733,7]
[385875177,1758081045135,-151.665232,0.00024733,7]
[385875179,1758081045144,-500.0,0.00024738,2]
[385875181,1758081045154,-756.0,0.00024766,2]
[385875183,1758081045163,-899.0,0.00024766,2]
[385875186,1758081045173,-500.0,0.00024766,2]
[385875188,1758081045183,-500.0,0.00024766,2]
[385875190,1758081045194,-500.0,0.00024766,2]
[385875192,1758081045203,-500.0,0.00024766,2]
[385875194,1758081045213,-862.0,0.00024766,2]
[385875196,1758081045223,-500.0,0.00024766,2]
[385875198,1758081045232,-500.0,0.00024766,2]
[385875200,1758081045241,-500.0,0.00024773,2]
[385875202,1758081045251,-152.44,0.00024774,2]
[385875204,1758081045260,-150.22,0.00024774,2]
[385875206,1758081045271,-152.44,0.00024774,2]
[385875208,1758081045281,-151.39,0.00024774,2]
[385875210,1758081045290,-152.34,0.00024774,2]
[385875212,1758081045300,-151.6,0.00024774,2]
[385875214,1758081045309,-500.0,0.00024774,2]
[385875216,1758081045318,-151.0,0.000248,7]
[385875218,1758081045328,-151.0,0.000248,7]
[385875220,1758081045337,-151.0,0.000248,7]
[385875222,1758081045346,-151.0,0.000248,7]
[385875224,1758081045356,-153.749248,0.000248,7]
[385875226,1758081045365,-151.0,0.000248,7]
[385875228,1758081045375,-203.730073,0.000248,7]
[385875230,1758081045384,-162.776187,0.000248,7]
[385875232,1758081045393,-151.0,0.000248,7]
[385875234,1758081045402,-151.0,0.000248,7]
[385875237,1758081045411,-151.0,0.000248,7]
[385875239,1758081045421,-151.0,0.000248,7]
[385875241,1758081045430,-168.574386,0.000248,7]
[385875243,1758081045438,-151.0,0.000248,7]
[385875245,1758081045447,-151.0,0.000248,7]
[385875247,1758081045457,-156.321967,0.000248,7]